bitfinex/quotes_SOLUSD_20240708
["timestamp","ask_amount","ask_price","bid_price","bid_amount"]
[1720444980348,7.0653,141.54,141.49,1.41311553]
[1720444982246,17.6589,141.58,141.49,1.41311553]
[1720444982423,5.83215389,141.59,141.52,33.72]
[1720444982626,5.83215389,141.59,141.53,1.58269137]
[1720444983052,5.83215389,141.59,141.53,0.17]
[1720444983236,5.83215389,141.59,141.53,0.38724131]
[1720444983551,5.83215389,141.59,141.48,15.0409]
[1720444983734,7.0666,141.51,141.48,50.16979428]
[1720444983933,0.2,141.59,141.54,100.0]
[1720444984236,6.6074,141.69,141.57,6.6183]
[1720444984438,6.6074,141.69,141.57,40.3383]
[1720444984635,6.6074,141.69,141.58,18.25962203]
[1720444985150,7.061,141.63,141.58,25.32252203]
[1720444985349,7.061,141.63,141.59,7.0625]
[1720444985647,0.2,141.69,141.63,0.17]
[1720444985850,7.577301,141.79,141.68,40.7781]
[1720444986069,7.577301,141.79,141.69,0.60243435]
[1720444986350,7.577301,141.79,141.72,33.72]
[1720444986351,0.2,141.79,141.72,33.72]
[1720444986549,0.2,141.79,141.73,1.41088183]
[1720444986728,7.0536,141.78,141.73,8.46648183]
[1720444987146,0.2,141.79,141.73,8.46648183]
[1720444987336,0.2,141.79,141.73,7.2256]
[1720444987537,0.2,141.79,141.72,51.3596]
[1720444987753,7.0536,141.78,141.73,7.0556]
[1720444988054,7.0536,141.78,141.7,22.1782]
[1720444988055,0.2,141.79,141.7,6.38]
[1720444988239,7.0542,141.76,141.71,7.2266]
[1720444988440,0.2,141.79,141.72,7.0559]
[1720444988745,7.055,141.75,141.71,17.6407]
[1720444988949,0.2,141.79,141.68,17.6453]
[1720444989643,0.2,141.79,141.67,1.41131364]
[1720444989644,7.0566,141.71,141.67,1.41131364]
[1720444989828,7.0567,141.71,141.68,1.41121402]
[1720444990634,7.0562,141.72,141.68,1.41121402]
[1720444990837,0.04197038,141.74,141.69,1.41107825]
[1720444991158,0.04197038,141.74,141.7,7.057]
[1720444991356,0.04197038,141.74,141.69,7.0575]
[1720444991655,0.04197038,141.74,141.68,7.058]
[1720444991952,7.09717038,141.74,141.67,17.6454]
[1720444992462,7.0557,141.73,141.68,7.44449512]
[1720444992667,7.0562,141.72,141.68,7.44449512]
[1720444992961,7.0558,141.73,141.69,0.38663231]
[1720444993338,0.04197038,141.74,141.68,7.058]
[1720444993339,7.0562,141.72,141.68,7.058]
[1720444993655,0.04197038,141.74,141.67,17.6454]
[1720444993656,7.0567,141.71,141.67,17.6454]
[1720444994256,0.04197038,141.74,141.67,24.7039]
[1720444994458,0.04197038,141.74,141.65,13.6191]
[1720444994635,7.0581,141.69,141.65,7.97029944]
[1720444994837,7.0573,141.7,141.66,7.0591]
[1720444995455,7.0573,141.7,141.65,15.02979944]
[1720444995763,7.0577,141.69,141.65,15.02979944]
[1720444996266,7.0573,141.7,141.66,7.0591]
[1720444997075,7.0577,141.69,141.65,8.46989944]
[1720444997750,0.04197038,141.74,141.63,7.0604]
[1720444997751,7.0587,141.67,141.63,7.0604]
[1720444997944,7.0587,141.67,141.62,7.061]
[1720444998249,7.0587,141.67,141.62,7.0608]
[1720444999262,7.0582,141.68,141.64,7.0601]
[1720444999669,7.0578,141.69,141.65,7.0595]
[1720445000251,17.642,141.71,141.63,17.6507]
[1720445000439,7.0592,141.66,141.63,17.6507]
[1720445000967,7.0587,141.67,141.63,24.7113]
[1720445002570,7.0583,141.68,141.64,8.0037413]
[1720445002869,7.0587,141.67,141.63,24.7112]
[1720445003174,7.0583,141.68,141.64,8.47197483]
[1720445003766,7.0587,141.67,141.64,1.41187483]
[1720445004270,17.642,141.71,141.65,1.4118218]
[1720445004478,20.0,141.7,141.65,1.4118218]
[1720445005068,7.0581,141.68,141.65,1.4118218]
[1720445005371,7.0586,141.67,141.63,24.7111]
[1720445005776,7.0582,141.68,141.64,7.06]
[1720445006649,7.0577,141.69,141.65,7.0596]
[1720445007644,7.0582,141.68,141.64,7.69170259]
[1720445007870,20.0,141.7,141.65,18.3012573]
[1720445008079,20.0,141.73,141.66,7.71121127]
[1720445008246,20.0,141.73,141.66,0.65221127]
[1720445008247,7.0576,141.69,141.66,0.65221127]
[1720445009042,7.0568,141.71,141.67,7.0585]
[1720445009370,7.056,141.73,141.68,0.65214886]
[1720445009572,7.09727038,141.74,141.7,7.0571]
[1720445009749,7.09727038,141.74,141.71,1.41115998]
[1720445009951,0.04197038,141.74,141.71,8.46765998]
[1720445010167,0.04197038,141.74,141.72,7.0559]
[1720445010367,0.04197038,141.74,141.73,8.46653034]
[1720445011050,0.04197038,141.74,141.73,1.41093034]
[1720445013562,0.04197038,141.74,141.71,17.6409]
[1720445013760,7.09707038,141.74,141.71,17.6409]
[1720445014176,7.0558,141.73,141.69,7.0576]
[1720445016473,7.0558,141.73,141.7,1.41062391]
[1720445017385,7.0576,141.7,141.66,7.059]
[1720445017550,7.0576,141.7,141.67,1.40823468]
[1720445017974,17.68017038,141.74,141.68,1.40813528]
[1720445018282,7.0564,141.72,141.68,8.46603528]
[1720445019380,17.68017038,141.74,141.68,1.40813528]
[1720445019571,7.0577,141.69,141.65,13.2812]
[1720445019771,7.0573,141.7,141.66,7.059]
[1720445020080,7.0568,141.71,141.67,7.0586]
[1720445020378,7.0568,141.71,141.68,0.51510812]
[1720445021370,7.0563,141.72,141.68,7.57320812]
[1720445021555,7.0558,141.73,141.69,7.57251946]
[1720445021953,7.0562,141.72,141.69,0.51501946]
[1720445022154,7.0566,141.71,141.69,0.51501946]
[1720445022354,7.0566,141.71,141.69,1.31880665]
[1720445022576,7.0562,141.72,141.69,1.31880665]
[1720445023285,7.0567,141.71,141.68,24.7034]
[1720445023572,7.0563,141.72,141.68,24.7034]
[1720445024770,7.0566,141.71,141.68,17.6453]
[1720445025173,7.0572,141.7,141.67,7.0584]
[1720445025484,7.0568,141.71,141.67,7.0584]
[1720445027372,7.0568,141.71,141.67,24.705]
[1720445028055,0.04197038,141.74,141.67,24.705]
[1720445028056,7.0572,141.7,141.67,17.6466]
[1720445028256,7.0572,141.7,141.66,7.0589]
[1720445029688,0.04197038,141.74,141.66,17.6474]
[1720445029855,7.0569,141.71,141.67,7.0582]
[1720445030057,0.04197038,141.74,141.65,6.2218]
[1720445030257,0.04197038,141.74,141.67,33.52]
[1720445030486,0.04197038,141.74,141.72,24.696]
[1720445030677,0.04197038,141.74,141.73,7.72272173]
[1720445031478,0.04197038,141.74,141.73,1.41083687]
[1720445034464,0.04197038,141.74,141.69,17.6433]
[1720445034676,0.04197038,141.74,141.7,7.0568]
[1720445034986,0.04197038,141.74,141.7,1.41104346]
[1720445035300,7.0567,141.71,141.67,7.0586]
[1720445035675,7.0568,141.71,141.66,17.6472]
[1720445036577,7.0562,141.72,141.67,7.0581]
[1720445036782,7.0557,141.73,141.68,17.6448]
[1720445037587,7.0557,141.73,141.69,7.0574]
[1720445037887,7.0557,141.73,141.68,24.7027]
[1720445038381,7.0562,141.72,141.68,24.7027]
[1720445038777,7.0566,141.71,141.67,7.0585]
[1720445038964,17.68017038,141.74,141.66,7.0588]
[1720445039170,7.0568,141.71,141.67,7.0584]
[1720445039664,7.0562,141.72,141.68,7.0581]
[1720445040376,7.0562,141.72,141.68,8.46729223]
[1720445040792,20.0,141.73,141.69,7.0574]
[1720445040991,20.0,141.73,141.7,7.0567]
[1720445041192,0.04197038,141.74,141.71,8.4654939]
[1720445041386,27.09727038,141.74,141.7,7.0571]
[1720445041690,7.0559,141.73,141.69,8.46615698]
[1720445042400,0.04197038,141.74,141.69,1.41125342]
[1720445042598,0.04197038,141.74,141.66,1.41138088]
[1720445042802,7.0563,141.72,141.68,7.0581]
[1720445042974,7.0557,141.73,141.69,8.46838204]
[1720445043298,0.04197038,141.74,141.69,1.41108204]
[1720445043599,0.04197038,141.74,141.71,17.6411]
[1720445043801,0.04197038,141.74,141.72,1.41078334]
[1720445044284,0.04197038,141.74,141.72,8.46678334]
[1720445047194,0.04197038,141.74,141.68,17.6445]
[1720445047386,7.0563,141.72,141.68,24.7025]
[1720445047881,7.0567,141.71,141.68,17.6445]
[1720445048287,7.0563,141.72,141.68,24.7025]
[1720445048684,7.0557,141.73,141.69,8.46173251]
[1720445049303,23.02367038,141.74,141.69,8.46173251]
[1720445049478,23.02367038,141.74,141.7,7.057]
[1720445049679,15.96837038,141.74,141.7,7.057]
[1720445049982,0.04197038,141.74,141.71,7.0562]
[1720445050799,7.09717038,141.74,141.7,24.6985]
[1720445050993,0.04197038,141.74,141.7,24.6985]
[1720445051303,0.04197038,141.74,141.71,7.0566]
[1720445051475,0.04197038,141.74,141.72,19.04671732]
[1720445051678,0.04197038,141.74,141.73,1.40661806]
[1720445051884,0.04197038,141.74,141.73,8.46221806]
[1720445052089,0.04197038,141.74,141.72,24.696]
[1720445052285,0.04197038,141.74,141.72,17.64]
[1720445052693,0.04197038,141.74,141.72,24.6961]
[1720445052998,0.04197038,141.74,141.7,7.0567]
[1720445053180,7.09717038,141.74,141.7,7.0567]
[1720445053504,7.0556,141.73,141.69,24.7009]
[1720445053800,7.0568,141.71,141.67,7.0586]
[1720445054109,7.0577,141.69,141.65,7.0596]
[1720445055488,7.0577,141.69,141.65,24.7086]
[1720445055690,0.04197038,141.74,141.63,41.4104]
[1720445055891,0.04197038,141.74,141.71,7.0565]
[1720445056112,0.04197038,141.74,141.69,17.6434]
[1720445056500,7.09737038,141.74,141.7,7.0569]
[1720445056700,7.09737038,141.74,141.7,8.46706157]
[1720445057207,7.09737038,141.74,141.73,7.0556]
[1720445057208,0.04197038,141.74,141.73,7.0556]
[1720445058209,0.04197038,141.74,141.72,8.46586698]
[1720445059507,0.04197038,141.74,141.71,24.6978]
[1720445059900,0.04197038,141.74,141.72,7.0561]
[1720445060412,0.04197038,141.74,141.73,8.45000573]
[1720445060996,0.04197038,141.74,141.73,1.39440573]
[1720445062121,0.04197038,141.74,141.73,8.45000573]
[1720445062292,0.04197038,141.74,141.73,7.0556]
[1720445062814,0.04197038,141.74,141.72,8.45030573]
[1720445063511,0.04197038,141.74,141.73,7.0556]
[1720445064114,0.04197038,141.74,141.73,7.2256]
[1720445066298,0.04197038,141.74,141.73,7.0556]
[1720445066920,0.04197038,141.74,141.73,24.6947]
[1720445067508,7.0566,141.71,141.67,7.0583]
[1720445067825,7.0566,141.72,141.68,8.04251361]
[1720445068122,7.0566,141.72,141.68,7.058]
[1720445068421,0.04197038,141.74,141.67,17.6456]
[1720445068596,7.0562,141.72,141.68,7.0579]
[1720445068796,7.0562,141.72,141.67,17.6456]
[1720445068797,7.0569,141.71,141.67,17.6456]
[1720445068996,0.04197038,141.74,141.64,33.5239]
[1720445068997,17.68007038,141.74,141.64,33.5239]
[1720445069223,7.0572,141.7,141.64,15.8741]
[1720445069521,7.0572,141.7,141.66,24.7066]
[1720445069819,7.0577,141.69,141.65,7.0594]
[1720445070429,7.0572,141.7,141.66,7.059]
[1720445071906,7.0568,141.71,141.67,7.0586]
[1720445072106,7.0572,141.7,141.66,7.059]
[1720445072726,7.0582,141.68,141.65,17.6486]
[1720445072920,17.8107,141.72,141.65,17.6486]
[1720445073219,7.0577,141.69,141.65,24.7078]
[1720445074929,7.0577,141.69,141.66,7.0591]
[1720445075116,7.0577,141.69,141.65,24.7081]
[1720445076538,7.0577,141.69,141.66,7.0591]
[1720445076830,0.04197038,141.74,141.67,0.17]
[1720445077022,0.04197038,141.74,141.71,17.6415]
[1720445077225,0.04197038,141.74,141.72,7.056]
[1720445077806,0.04197038,141.74,141.72,8.06583365]
[1720445078334,0.04197038,141.74,141.72,1.00983365]
[1720445079629,0.04197038,141.74,141.72,8.06593365]
[1720445080226,0.04197038,141.74,141.72,1.00983365]
[1720445080431,0.04197038,141.74,141.73,7.0556]
[1720445080820,0.04197038,141.74,141.72,8.06583365]
[1720445081645,0.04197038,141.74,141.73,7.0556]
[1720445082911,0.04197038,141.74,141.72,8.06583365]
[1720445083117,7.09717038,141.74,141.72,1.00983365]
[1720445083437,7.09717038,141.74,141.71,24.6981]
[1720445083626,0.04197038,141.74,141.71,24.6981]
[1720445084330,0.04197038,141.74,141.72,7.056]
[1720445085111,0.04197038,141.74,141.73,7.0556]
[1720445085840,0.04197038,141.74,141.72,7.056]
[1720445086840,0.04197038,141.74,141.73,1.4108762]
[1720445087040,0.04197038,141.74,141.73,24.8647]
[1720445087245,0.04197038,141.74,141.73,25.0347]
[1720445087950,0.04197038,141.74,141.73,24.8647]
[1720445088321,0.04197038,141.74,141.73,25.47376137]
[1720445089151,0.04197038,141.74,141.73,24.8647]
[1720445089513,0.04197038,141.74,141.73,25.83006367]
[1720445090139,0.04197038,141.74,141.73,18.60446367]
[1720445090324,0.04197038,141.74,141.73,25.66006367]
[1720445091625,0.04197038,141.74,141.73,24.6947]
[1720445096026,0.04197038,141.74,141.73,17.6391]
[1720445096551,0.04197038,141.74,141.73,24.6947]
[1720445097250,0.04197038,141.74,141.71,7.0565]
[1720445097749,0.04197038,141.74,141.72,7.056]
[1720445098045,0.04197038,141.74,141.7,24.6991]
[1720445098046,7.09717038,141.74,141.7,24.6991]
[1720445098240,7.09717038,141.74,141.71,7.0565]
[1720445098428,0.04197038,141.74,141.71,7.0565]
[1720445098628,7.09717038,141.74,141.71,7.0565]
[1720445099334,0.04197038,141.74,141.68,7.0577]
[1720445099525,7.0566,141.71,141.67,24.7043]
[1720445100045,7.0563,141.72,141.68,7.0581]
[1720445100224,7.0557,141.73,141.69,7.0574]
[1720445100420,0.04197038,141.74,141.7,7.0569]
[1720445100625,7.0563,141.72,141.69,17.6435]
[1720445100932,7.0563,141.72,141.68,7.0577]
[1720445101131,7.0563,141.72,141.69,0.51811965]
[1720445101355,7.0558,141.73,141.69,7.57571965]
[1720445101929,7.0562,141.72,141.69,0.51811965]
[1720445102231,7.0562,141.72,141.68,24.7031]
[1720445102430,0.04197038,141.74,141.68,17.6452]
[1720445102431,7.0567,141.71,141.68,17.6452]
[1720445102950,7.0573,141.7,141.66,7.0588]
[1720445103750,7.0573,141.7,141.66,7.059]
[1720445104048,17.68067038,141.74,141.67,7.0586]
[1720445104049,7.0568,141.71,141.67,7.0586]
[1720445105458,7.0571,141.7,141.65,17.6486]
[1720445106138,7.0571,141.7,141.66,7.059]
[1720445106549,22.6595,141.7,141.66,7.059]
[1720445107132,22.6595,141.7,141.67,7.0586]
[1720445107441,22.6595,141.7,141.65,17.6486]
[1720445107442,7.0578,141.69,141.65,24.7078]
[1720445108852,7.0595,141.66,141.62,24.7135]
[1720445109156,7.0588,141.67,141.63,7.0605]
[1720445109655,7.0582,141.68,141.64,17.65]
[1720445109848,7.0582,141.68,141.64,24.71]
[1720445110047,7.0587,141.67,141.64,17.65]
[1720445110237,7.0592,141.66,141.62,7.0606]
[1720445110430,7.0598,141.65,141.61,26.12685363]
[1720445110636,7.0602,141.64,141.61,19.06535363]
[1720445111361,7.0602,141.64,141.6,7.0621]
[1720445111555,15.6024,141.7,141.58,1.41185363]
[1720445111868,20.0,141.69,141.59,0.17]
[1720445112039,20.0,141.69,141.63,17.6512]
[1720445112373,7.0587,141.67,141.63,17.6512]
[1720445112856,7.0587,141.67,141.63,24.7116]
[1720445113052,7.0582,141.68,141.64,7.0601]
[1720445113233,20.0,141.69,141.6,17.6542]
[1720445113439,17.6478,141.67,141.61,1.02427485]
[1720445113664,17.6478,141.67,141.59,51.1964]
[1720445113665,7.0602,141.64,141.6,7.0618]
[1720445114858,7.0607,141.63,141.59,24.7189]
[1720445115166,7.0603,141.64,141.6,7.0621]
[1720445115856,7.0602,141.64,141.61,17.6538]
[1720445116546,7.0616,141.61,141.58,17.6571]
[1720445116751,15.278,141.64,141.58,17.6571]
[1720445116953,7.0608,141.63,141.59,7.0622]
[1720445117153,15.278,141.64,141.61,7.0612]
[1720445117365,7.0597,141.65,141.62,1.4120694]
[1720445117753,7.0594,141.66,141.62,26.1256694]
[1720445118071,7.0596,141.65,141.62,17.6527]
[1720445118273,7.0596,141.65,141.62,19.0642705]
[1720445118445,7.0602,141.64,141.62,1.4115705]
[1720445118648,7.0607,141.63,141.59,24.7179]
[1720445118861,7.0607,141.63,141.59,24.7177]
[1720445119060,7.0613,141.62,141.58,7.0631]
[1720445119270,7.0612,141.62,141.54,68.8635]
[1720445119475,7.0612,141.62,141.56,0.17]
[1720445120083,7.0612,141.62,141.58,24.7206]
[1720445120454,7.0608,141.63,141.59,7.0626]
[1720445121552,17.6495,141.65,141.57,7.0634]
[1720445121751,7.0619,141.61,141.57,7.0634]
[1720445121953,7.0622,141.6,141.56,8.47636092]
[1720445122251,7.0622,141.6,141.56,7.064]
[1720445123968,7.0618,141.61,141.56,7.064]
[1720445124174,7.0618,141.61,141.57,7.0634]
[1720445124567,7.0621,141.6,141.56,7.0639]
[1720445125966,16.3699,141.61,141.55,17.6609]
[1720445126167,16.3699,141.61,141.52,57.2101]
[1720445126491,16.3699,141.61,141.52,17.6644]
[1720445126492,7.0644,141.56,141.52,17.6644]
[1720445126659,17.6559,141.6,141.53,0.43400195]
[1720445126866,7.0639,141.57,141.53,7.49930195]
[1720445127074,7.0639,141.57,141.54,1.28218271]
[1720445127382,7.0622,141.6,141.56,7.064]
[1720445127590,16.3699,141.61,141.57,1.34082305]
[1720445127764,23.4318,141.61,141.58,1.34072834]
[1720445128281,16.3699,141.61,141.54,1.41244402]
[1720445128590,7.0641,141.56,141.55,1.41276666]
[1720445128888,7.0639,141.57,141.53,8.47826666]
[1720445129683,7.0628,141.59,141.55,7.0643]
[1720445129860,33.8508,141.64,141.57,7.0636]
[1720445130077,7.0616,141.61,141.58,1.41232449]
[1720445130486,7.0621,141.6,141.58,1.41232449]
[1720445130673,7.0621,141.6,141.56,7.0639]
[1720445130674,7.0621,141.6,141.57,1.41244668]
[1720445131060,7.0624,141.6,141.56,7.0639]
[1720445131993,7.0626,141.59,141.55,24.7258]
[1720445133174,17.6535,141.62,141.54,7.065]
[1720445133482,7.0637,141.57,141.53,7.0654]
[1720445133662,7.0637,141.57,141.54,1.220027]
[1720445134090,7.0633,141.58,141.54,8.285027]
[1720445134288,7.0628,141.59,141.55,8.2845408]
[1720445135867,7.0623,141.6,141.56,24.7242]
[1720445136083,16.1997,141.64,141.57,1.21976845]
[1720445136296,7.06,141.65,141.61,7.0615]
[1720445136473,7.0597,141.65,141.62,1.22331661]
[1720445136680,7.0597,141.65,141.61,7.0614]
[1720445137784,7.0597,141.65,141.62,1.41197637]
[1720445138586,7.0602,141.64,141.6,24.7169]
[1720445138795,16.0351,141.67,141.57,16.6568]
[1720445139101,16.0351,141.67,141.53,20.0]
[1720445139102,7.0624,141.6,141.58,1.41223105]
[1720445139297,17.6505,141.64,141.57,1.41223105]
[1720445139496,7.0623,141.6,141.57,1.41223105]
[1720445141905,7.0638,141.57,141.53,23.5584]
[1720445142078,7.0633,141.58,141.54,7.065]
[1720445142277,7.0633,141.58,141.55,0.75227277]
[1720445142683,7.0633,141.58,141.54,7.065]
[1720445143196,7.0628,141.59,141.55,7.0645]
[1720445144302,7.0631,141.58,141.55,7.0645]
[1720445145003,7.0631,141.58,141.54,24.7275]
[1720445145596,7.0638,141.57,141.53,7.0654]
[1720445145904,33.5018,141.61,141.52,7.066]
[1720445145905,7.0643,141.56,141.52,7.066]
[1720445146202,7.0643,141.56,141.53,7.0656]
[1720445146420,7.0638,141.57,141.54,7.0651]
[1720445146588,7.0632,141.58,141.54,7.0651]
[1720445146783,7.0632,141.58,141.54,8.02100051]
[1720445147287,7.064,141.57,141.53,24.7293]
[1720445147806,15.8476,141.61,141.53,24.7293]
[1720445147807,7.0632,141.58,141.54,7.0648]
[1720445148701,7.0637,141.57,141.53,24.7293]
[1720445150094,7.065,141.55,141.51,6.6534]
[1720445150296,7.0658,141.53,141.5,32.7271]
[1720445150808,17.6617,141.55,141.48,7.0678]
[1720445151003,17.6617,141.55,141.47,39.692]
[1720445151004,7.0669,141.51,141.47,13.2204]
[1720445152314,7.0662,141.52,141.48,7.0681]
[1720445152612,7.0672,141.5,141.46,17.6718]
[1720445152918,7.0683,141.48,141.45,16.5737]
[1720445153095,17.6669,141.51,141.44,6.4394]
[1720445153301,7.0682,141.48,141.44,13.5093]
[1720445153498,7.0682,141.48,141.44,14.92098436]
[1720445154113,7.0677,141.49,141.45,7.0694]
[1720445154312,7.0677,141.49,141.45,8.48088477]
[1720445155518,7.0682,141.48,141.44,13.5094]
[1720445156593,7.0682,141.48,141.44,13.97752711]
[1720445157892,17.6682,141.5,141.43,17.6753]
[1720445158093,7.0682,141.48,141.44,7.0698]
[1720445158512,7.0686,141.47,141.43,24.7457]
[1720445158820,17.6667,141.51,141.43,17.6753]
[1720445159021,7.0681,141.48,141.44,7.0697]
[1720445159725,7.0681,141.48,141.44,7.94544816]
[1720445160231,0.17,141.52,141.45,17.6739]
[1720445160521,7.0689,141.47,141.43,7.0702]
[1720445161017,17.6684,141.5,141.42,24.7478]
[1720445161326,7.0692,141.46,141.42,24.7477]
[1720445161506,7.0706,141.43,141.41,23.1326]
[1720445161714,17.6714,141.48,141.42,7.0711]
[1720445161906,7.0694,141.46,141.42,7.0711]
[1720445162424,36.0978,141.49,141.41,13.8283]
[1720445162626,0.17,141.48,141.41,0.2]
[1720445162833,7.0701,141.44,141.41,0.2]
[1720445163325,17.672,141.47,141.41,0.2]
[1720445163524,7.0702,141.44,141.41,0.2]
[1720445163724,7.0702,141.44,141.41,7.2716]
[1720445164244,7.0697,141.45,141.41,7.2716]
[1720445165137,7.0711,141.42,141.41,0.2]
[1720445165931,27.0711,141.42,141.41,0.2]
[1720445166232,27.2411,141.42,141.41,0.2]
[1720445168815,60.7811,141.42,141.41,0.2]
[1720445170422,105.7811,141.42,141.41,0.2]
[1720445171216,105.7811,141.42,141.41,0.0001]
[1720445171419,7.0754,141.34,141.31,0.2]
[1720445171820,17.6817,141.39,141.32,17.6901]
[1720445172015,72.53058877,141.42,141.4,7.072]
[1720445172016,7.36058877,141.42,141.4,7.072]
[1720445172216,51.21,141.49,141.4,6.2086]
[1720445172454,17.67,141.49,141.41,19.08770536]
[1720445172610,7.0703,141.44,141.41,1.40910536]
[1720445172815,7.0699,141.45,141.41,8.48070536]
[1720445173036,15.8708,141.51,141.42,17.6773]
[1720445173354,15.7038,141.55,141.43,1.57890609]
[1720445173512,15.7038,141.55,141.46,7.0687]
[1720445173845,17.6633,141.54,141.45,17.6732]
[1720445174627,7.069,141.47,141.42,24.7483]
[1720445174828,33.54,141.54,141.41,56.091]
[1720445174829,7.0697,141.45,141.41,56.091]
[1720445175040,7.0697,141.45,141.41,15.4796]
[1720445175226,7.0701,141.44,141.41,15.4796]
[1720445175625,7.0709,141.43,141.41,15.4796]
[1720445175853,7.0709,141.43,141.4,7.61959836]
[1720445176227,7.0702,141.44,141.4,7.61959836]
[1720445176652,17.6672,141.51,141.4,7.61959836]
[1720445176957,20.0,141.5,141.43,7.0705]
[1720445177163,20.0,141.5,141.44,1.41059931]
[1720445177447,20.0,141.5,141.4,23.8882]
[1720445177645,7.0695,141.46,141.41,7.0715]
[1720445177853,7.0687,141.47,141.42,7.0709]
[1720445178060,7.0687,141.47,141.43,1.41327882]
[1720445178238,7.0687,141.47,141.43,8.48387882]
[1720445178648,17.6706,141.48,141.41,1.41327882]
[1720445178858,7.0706,141.43,141.4,6.2086]
[1720445179049,17.6732,141.46,141.4,6.2086]
[1720445179347,7.0713,141.42,141.4,6.2086]
[1720445179553,7.0707,141.43,141.4,6.2086]
[1720445180054,7.0711,141.42,141.4,6.2086]
[1720445180757,7.0722,141.4,141.37,34.0012]
[1720445181330,17.6725,141.47,141.39,7.0726]
[1720445181556,7.0696,141.45,141.41,7.0711]
[1720445181759,7.0696,141.45,141.42,1.41392108]
[1720445181760,7.0698,141.45,141.42,1.41392108]
[1720445182342,7.0698,141.45,141.41,24.7497]
[1720445182343,7.0703,141.44,141.41,17.6782]
[1720445182752,7.0703,141.44,141.4,7.0718]
[1720445183861,7.0697,141.45,141.41,7.0715]
[1720445184158,7.0697,141.45,141.37,16.3179]
[1720445184159,17.6673,141.51,141.43,6.2895]
[1720445184461,15.0,141.59,141.44,34.77690478]
[1720445184462,17.6636,141.54,141.44,34.77690478]
[1720445184636,17.6636,141.54,141.46,17.6721]
[1720445184842,7.0647,141.55,141.47,0.17]
[1720445185145,7.0647,141.55,141.5,24.7342]
[1720445185451,7.066,141.53,141.49,7.0675]
[1720445185636,7.066,141.53,141.48,7.0679]
[1720445185831,17.6584,141.58,141.48,7.0679]
[1720445185832,7.0661,141.52,141.48,7.0679]
[1720445187263,17.6608,141.56,141.47,17.6707]
[1720445187435,7.0671,141.5,141.47,17.6707]
[1720445188150,7.0667,141.51,141.47,24.7393]
[1720445188544,7.0662,141.52,141.47,24.7393]
[1720445188749,7.0662,141.52,141.48,7.068]
[1720445188956,0.17,141.55,141.49,7.0672]
[1720445189277,0.17,141.55,141.48,8.48126496]
[1720445189278,7.066,141.53,141.48,8.48126496]
[1720445189477,20.0,141.52,141.49,1.41326508]
[1720445189761,7.0667,141.51,141.47,24.7393]
[1720445191570,7.0677,141.49,141.45,7.0695]
[1720445192595,7.0676,141.49,141.45,7.0695]
[1720445193274,7.0667,141.51,141.47,7.0685]
[1720445193480,20.0,141.52,141.46,17.6724]
[1720445193481,20.0,141.52,141.48,0.71721418]
[1720445193680,7.0653,141.54,141.5,7.0668]
[1720445193997,7.0653,141.54,141.51,1.41316404]
[1720445194314,7.0648,141.55,141.52,1.41316333]
[1720445194596,7.0648,141.55,141.52,1.41311046]
[1720445194774,7.0648,141.55,141.51,7.0665]
[1720445194775,7.0651,141.54,141.5,31.0744]
[1720445195175,7.0651,141.54,141.51,1.29904126]
[1720445196813,17.6605,141.56,141.5,6.3397]
[1720445196975,20.0,141.55,141.47,17.6706]
[1720445197297,7.0672,141.5,141.45,6.0167]
[1720445197504,7.0668,141.51,141.47,7.0686]
[1720445197684,17.6632,141.54,141.48,8.48142894]
[1720445197685,7.0663,141.52,141.48,8.48142894]
[1720445197982,7.0663,141.52,141.49,1.41332706]
[1720445198425,7.0663,141.52,141.5,1.41318404]
[1720445199206,7.0663,141.52,141.5,1.41318404]